fUST/lending_fUST_20241217
["ID","MTS","AMOUNT","RATE_DAILY","PERIOD"]
[345673737,1734420645658,-417.124226,0.00024915,7]
[345673738,1734420645668,-417.124226,0.00024915,7]
[345673739,1734420645678,-417.124228,0.00024915,7]
[345673740,1734420645687,-500.0,0.00024915,6]
[345673741,1734420645697,-500.0,0.00024915,6]
[345673742,1734420645706,-500.0,0.00024915,6]
[345673743,1734420645716,-538.52761471,0.00024915,6]
[345673744,1734420645725,-500.0,0.00024915,6]
[345673745,1734420645735,-500.0,0.00024915,6]
[345673746,1734420645745,-500.0,0.00024915,6]
[345673747,1734420645756,-502.46241665,0.00024915,6]
[345673748,1734420645766,-500.0,0.00024915,6]
[345673749,1734420645776,-2301.06,0.00024915,6]
[345673750,1734420645786,-500.0,0.00024915,6]
[345673751,1734420645796,-500.0,0.00024915,6]
[345673752,1734420645806,-864.56,0.00024915,6]
[345673753,1734420645815,-504.41585046,0.00024915,6]
[345673754,1734420645825,-500.0,0.00024915,6]
[345673755,1734420645835,-500.0,0.00024915,6]
[345673756,1734420645845,-500.0,0.00024915,6]
[345673757,1734420645854,-774.42,0.00024915,6]
[345673758,1734420645864,-500.0,0.00024915,6]
[345673759,1734420645873,-151.0,0.00024915,7]
[345673760,1734420645884,-151.0,0.00024915,7]
[345673761,1734420645893,-500.0,0.00024915,6]
[345673762,1734420645903,-500.0,0.00024915,6]
[345673763,1734420645913,-500.0,0.00024915,6]
[345673764,1734420645922,-500.0,0.00024915,6]
[345673765,1734420645932,-500.0,0.00024915,6]
[345673766,1734420645942,-506.01194191,0.00024915,6]
[345673767,1734420645952,-160.0,0.00024916,2]
[345673768,1734420645962,-160.0,0.00024916,2]
[345673769,1734420645972,-160.0,0.00024916,2]
[345673770,1734420645982,-160.0,0.00024916,2]
[345673771,1734420645991,-160.0,0.00024916,2]
[345673772,1734420646001,-160.0,0.00024916,2]
[345673773,1734420646011,-160.0,0.00024916,2]
[345673775,1734420646020,-166.0,0.00024916,2]
[345673776,1734420646030,-160.0,0.00024916,2]
[345673777,1734420646039,-168.77,0.00024916,2]
[345673778,1734420646050,-160.0,0.00024916,2]
[345673779,1734420646060,-160.0,0.00024916,2]
[345673780,1734420646069,-160.0,0.00024916,2]
[345673781,1734420646079,-160.0,0.00024916,2]
[345673782,1734420646089,-160.99,0.00024916,2]
[345673783,1734420646099,-151.0,0.00024916,7]
[345673784,1734420646108,-151.0,0.00024916,7]
[345673785,1734420646118,-200.0,0.0002493,2]
[345673786,1734420646131,-500.0,0.0002493,2]
[345673787,1734420646140,-450.0378559,0.0002493,2]
[345673788,1734420646151,-173.8351411,0.0002493,2]
[345673789,1734420646164,-573.13547545,0.0002493,2]
[345673791,1734420646174,-500.0,0.0002493,2]
[345673792,1734420646183,-194.06346392,0.0002493,2]
[345673793,1734420646193,-7902.33,0.00024931,6]
[345673794,1734420646203,-1086.5,0.00024931,6]
[345673795,1734420646213,-500.0,0.00024931,6]
[345673796,1734420646223,-7369.28,0.00024931,6]
[345673797,1734420646236,-500.0,0.00024931,6]
[345673798,1734420646247,-11808.82,0.00024931,6]
[345673799,1734420646257,-500.0,0.00024931,6]
[345673800,1734420646267,-500.0,0.00024931,6]
[345673801,1734420646277,-1881.91,0.00024931,6]
[345673802,1734420646287,-1141.29,0.00024931,6]
[345673803,1734420646297,-500.0,0.00024931,6]
[345673804,1734420646306,-1114.98,0.00024931,6]
[345673806,1734420646315,-1939.88,0.00024931,6]
[345673808,1734420646325,-507.465174,0.00024931,6]
[345673810,1734420646335,-500.0,0.00024931,6]
[345673811,1734420646344,-502.76151802,0.00024931,6]
[345673812,1734420646354,-500.0,0.00024931,6]
[345673813,1734420646363,-500.0,0.00024931,6]
[345673814,1734420646373,-500.0,0.00024931,6]
[345673815,1734420646384,-695.36,0.00024931,6]
[345673816,1734420646394,-500.0,0.00024931,6]
[345673817,1734420646403,-3927.30353391,0.00024931,6]
[345673822,1734420646746,-500.0,0.00024657,6]
[345673823,1734420646756,-295.34646609,0.00024931,6]
[345673824,1734420646767,-500.0,0.00024931,6]
[345673825,1734420646776,-1228.37,0.00024931,6]
[345673826,1734420646786,-1387.68214521,0.00024931,6]
[345673838,1734421461893,165.342998,0.00013973,2]
[345673948,1734421832774,-151.284531,0.00021,2]
[345673949,1734421832784,-300.0,0.0002339,2]
[345673950,1734421832793,-300.0,0.0002339,2]
[345673951,1734421832802,-5.94040733,0.00023391,2]
[345674368,1734421843935,-21163.38407497,0.00023391,2]
[345678259,1734422441588,163.390864,0.00013973,2]
[345678261,1734422672450,50000.0,0.00024,60]
[345678262,1734422689973,1622.87,0.00024,60]
[345678264,1734422875483,5671.2302194,0.00025559,120]
[345678316,1734423031942,-305.99168078,0.000209,2]
[345678318,1734423031952,-633.95114529,0.00021,2]
[345678326,1734423032012,-7459.56077775,0.00021,2]
[345678328,1734423032021,-551.1358851,0.00021603,2]
[345678330,1734423032031,-300.0,0.00021898,2]
[345678332,1734423032040,-300.0,0.00021899,2]
[345678333,1734423032049,-1763.72611169,0.000219,2]
[345678335,1734423032059,-180.12276174,0.000219,2]
[345678337,1734423032069,-155.0,0.00022,2]
[345678340,1734423032078,-155.0,0.00022192,2]
[345678341,1734423032087,-5616.5020747,0.00022712,2]
[345678344,1734423032097,-169.198961,0.00022831,2]
[345678346,1734423032107,-157.7823902,0.000229,2]
[345678377,1734423032116,-169.941169,0.00022931,2]
[345678380,1734423032313,-169.198961,0.00022945,2]
[345678381,1734423032322,-29199.25837544,0.00023,7]
[345678384,1734423032332,-157.0,0.00023,2]
[345678385,1734423032341,-155.0,0.00023014,2]
[345678387,1734423032351,-181.552527,0.00023175,2]
[345678389,1734423032360,-246.0542924,0.00023216,2]
[345678391,1734423032369,-2154.0,0.0002332,2]
[345678393,1734423032378,-533.0,0.0002332,2]
[345678395,1734423032387,-2368.0,0.0002332,2]
[345678397,1734423032396,-380.264,0.0002332,2]
[345678399,1734423032405,-157.7823902,0.000234,2]
[345678401,1734423032414,-181.552527,0.00023521,2]
[345678404,1734423032423,-251.1827803,0.00023562,2]
[345678405,1734423032432,-479.951,0.0002375,2]
[345678407,1734423032441,-420.0,0.00023798,2]
[345678409,1734423032451,-181.552527,0.00023868,2]
[345678412,1734423032461,-157.7823902,0.000239,2]
[345678413,1734423032471,-10665.50146046,0.00024,3]
[345678415,1734423032480,-420.0,0.00024089,2]
[345678418,1734423032489,-156.0,0.00024164,2]
[345678420,1734423032499,-151.0,0.00024214,7]
[345678422,1734423032508,-214.791855,0.00024214,7]
[345678424,1734423032518,-151.0,0.00024214,7]
[345678426,1734423032527,-181.552527,0.00024214,2]
[345678428,1734423032536,-1150.76991032,0.000243,2]
[345678430,1734423032545,-157.7823902,0.000244,2]
[345678432,1734423032555,-251.686,0.00024411,2]
[345678434,1734423032564,-878.35315812,0.000245,2]
[345678436,1734423032573,-167.8708504,0.00024556,2]
[345678438,1734423032582,-4212.17437646,0.00024557,2]
[345678440,1734423032591,-181.552527,0.00024561,2]
[345678442,1734423032600,-167.0,0.00024604,2]
[345678444,1734423032609,-64785.96233034,0.00024656,2]
[345678446,1734423032619,-7133.03933329,0.00024656,2]
[345678448,1734423032628,-626674.7731602,0.00024656,7]
[345678450,1734423032638,-500.0,0.00024656,2]
[345678452,1734423032647,-176.57281097,0.00024656,2]
[345678453,1734423032656,-151.0,0.00024656,7]
[345678456,1734423032666,-501.96483491,0.00024657,6]
[345678458,1734423032675,-500.0,0.00024657,6]
[345678460,1734423032685,-501.6381127,0.00024657,6]
[345678461,1734423032694,-505.80521055,0.00024657,6]
[345678464,1734423032703,-557.27906894,0.00024657,6]
[345678465,1734423032714,-507.38863298,0.00024657,6]
[345678467,1734423032723,-506.36392333,0.00024657,6]
[345678469,1734423032733,-506.24356458,0.00024657,6]
[345678472,1734423032742,-500.0,0.00024657,6]
[345678474,1734423032751,-510.65478279,0.00024657,6]
[345678476,1734423032761,-568.03231235,0.00024657,6]
[345678478,1734423032770,-500.0,0.00024657,6]
[345678480,1734423032780,-500.0,0.00024657,6]
[345678482,1734423032789,-507.43664117,0.00024657,6]
[345678484,1734423032798,-506.11510218,0.00024657,6]
[345678486,1734423032807,-500.0,0.00024657,6]
[345678488,1734423032817,-500.0,0.00024657,6]
[345678490,1734423032826,-303.18123485,0.00024657,6]
[345678492,1734423032836,-500.0,0.00024657,6]
[345678494,1734423032845,-502.17866558,0.00024657,6]
[345678496,1734423032854,-501.02027871,0.00024657,6]
[345678498,1734423032863,-535.10129997,0.00024657,6]
[345678500,1734423032872,-500.0,0.00024657,6]
[345678502,1734423032881,-504.63274669,0.00024657,6]
[345678504,1734423032892,-500.0,0.00024657,6]
[345678506,1734423032903,-500.0,0.00024657,6]
[345678507,1734423032913,-505.01154856,0.00024657,6]
[345678509,1734423032922,-500.0,0.00024657,6]
[345678512,1734423032932,-500.0,0.00024657,6]
[345678514,1734423032942,-500.0,0.00024657,6]
[345678516,1734423032952,-500.0,0.00024657,6]
[345678518,1734423032962,-500.0,0.00024657,6]
[345678520,1734423032976,-501.64973358,0.00024657,6]
[345678522,1734423032985,-500.0,0.00024657,6]
[345678524,1734423032995,-500.0,0.00024657,6]
[345678526,1734423033004,-500.0,0.00024657,6]
[345678528,1734423033014,-500.0,0.00024657,6]
[345678530,1734423033023,-500.0,0.00024657,6]
[345678532,1734423033032,-503.40973337,0.00024657,6]
[345678533,1734423033042,-500.0,0.00024657,6]
[345678536,1734423033052,-190.33483387,0.00024657,6]
[345678537,1734423033062,-500.0,0.00024657,6]
[345678539,1734423033072,-500.0,0.00024657,6]
[345678542,1734423033082,-500.0,0.00024657,6]
[345678544,1734423033091,-501.73319004,0.00024657,6]
[345678546,1734423033101,-500.0,0.00024657,6]
[345678547,1734423033110,-500.0,0.00024657,6]
[345678550,1734423033120,-505.61552537,0.00024657,6]
[345678551,1734423033129,-320.06981447,0.00024657,6]
[345678554,1734423033142,-500.0,0.00024657,6]
[345678556,1734423033152,-504.77204303,0.00024657,6]
[345678558,1734423033161,-500.0,0.00024657,6]
[345678560,1734423033171,-500.0,0.00024657,6]
[345678562,1734423033180,-500.0,0.00024657,6]
[345678564,1734423033191,-500.0,0.00024657,6]
[345678566,1734423033200,-500.0,0.00024657,6]
[345678568,1734423033209,-500.0,0.00024657,6]
[345678570,1734423033220,-540.87864619,0.00024657,6]
[345678572,1734423033229,-500.0,0.00024657,6]
[345678574,1734423033239,-505.44473847,0.00024657,6]
[345678576,1734423033249,-500.0,0.00024657,6]
[345678578,1734423033260,-500.0,0.00024657,6]
[345678580,1734423033270,-500.0,0.00024657,6]
[345678582,1734423033280,-500.0,0.00024657,6]
[345678584,1734423033290,-500.0,0.00024657,6]
[345678586,1734423033300,-308.6634314,0.00024657,6]
[345678588,1734423033310,-3000.0,0.00024657,30]
[345678590,1734423033319,-306.74044541,0.00024657,6]
[345678592,1734423033329,-500.0,0.00024657,6]
[345678594,1734423033338,-664.94,0.00024657,6]
[345678596,1734423033348,-500.0,0.00024657,6]
[345678598,1734423033359,-517.44880329,0.00024657,6]
[345678600,1734423033369,-500.0,0.00024657,6]
[345678602,1734423033378,-500.0,0.00024657,6]
[345678604,1734423033388,-500.0,0.00024657,6]
[345678606,1734423033397,-500.0,0.00024657,6]
[345678608,1734423033407,-500.0,0.00024657,6]
[345678610,1734423033417,-500.0,0.00024657,6]
[345678612,1734423033426,-500.0,0.00024657,6]
[345678615,1734423033436,-500.0,0.00024657,6]
[345678617,1734423033445,-505.30477567,0.00024657,6]
[345678619,1734423033455,-500.0,0.00024657,6]
[345678621,1734423033466,-500.0,0.00024657,6]
[345678623,1734423033475,-500.0,0.00024657,6]
[345678625,1734423033485,-500.0,0.00024657,6]
[345678627,1734423033495,-500.0,0.00024657,6]
[345678629,1734423033505,-500.0,0.00024657,6]
[345678631,1734423033514,-500.0,0.00024657,6]
[345678633,1734423033524,-500.0,0.00024657,6]
[345678635,1734423033533,-503.13867391,0.00024657,6]
[345678637,1734423033542,-500.0,0.00024657,6]
[345678639,1734423033551,-501.34869143,0.00024657,6]
[345678641,1734423033560,-500.0,0.00024657,6]
[345678643,1734423033571,-484.29693426,0.00024657,6]
[345678645,1734423033581,-500.0,0.00024657,6]
[345678647,1734423033591,-500.0,0.00024657,6]
[345678649,1734423033601,-240.89299448,0.00024657,6]
[345678651,1734423033610,-500.0,0.00024657,6]
[345678653,1734423033620,-500.0,0.00024657,6]
[345678655,1734423033629,-500.0,0.00024657,6]
[345678656,1734423033639,-500.0,0.00024657,6]
[345678657,1734423033648,-511.15532137,0.00024657,6]
[345678658,1734423033658,-500.0,0.00024657,6]
[345678659,1734423033667,-500.0,0.00024657,6]
[345678660,1734423033677,-500.0,0.00024657,6]
[345678661,1734423033687,-500.0,0.00024657,6]
[345678662,1734423033697,-501.01204464,0.00024657,6]
[345678663,1734423033707,-500.0,0.00024657,2]
[345678664,1734423033717,-500.0,0.00024657,6]
[345678665,1734423033727,-500.0,0.00024657,6]
[345678666,1734423033736,-500.0,0.00024657,6]
[345678667,1734423033746,-500.0,0.00024657,6]
[345678668,1734423033755,-401.77877711,0.00024657,6]
[345678669,1734423033764,-500.0,0.00024657,6]
[345678670,1734423033774,-500.0,0.00024657,6]
[345678671,1734423033783,-500.0,0.00024657,6]
[345678673,1734423033793,-500.0,0.00024657,6]
[345678675,1734423033802,-500.0,0.00024657,6]
[345678677,1734423033812,-434.94347097,0.00024657,6]
[345678679,1734423033822,-500.0,0.00024657,6]
[345678681,1734423033832,-500.0,0.00024657,6]
[345678683,1734423033842,-500.0,0.00024657,6]
[345678685,1734423033852,-502.40588522,0.00024657,6]
[345678687,1734423033861,-500.0,0.00024657,6]
[345678689,1734423033871,-500.0,0.00024657,6]
[345678691,1734423033881,-500.0,0.00024657,6]
[345678693,1734423033892,-500.0,0.00024657,6]
[345678696,1734423033905,-500.0,0.00024657,6]
[345678698,1734423033915,-500.0,0.00024657,6]
[345678699,1734423033924,-500.1388329,0.00024657,6]
[345678702,1734423033935,-670.45,0.00024657,6]
[345678704,1734423033944,-500.0,0.00024657,6]
[345678706,1734423033954,-1463.82,0.00024657,6]
[345678708,1734423033964,-629.52598526,0.00024657,6]
[345678710,1734423033976,-500.0,0.00024657,6]
[345678712,1734423033986,-165.90952768,0.00024657,6]
[345678714,1734423033996,-500.0,0.00024657,6]
[345678716,1734423034006,-500.0,0.00024657,6]
[345678718,1734423034015,-500.0,0.00024657,6]
[345678720,1734423034025,-500.0,0.00024657,6]
[345678722,1734423034035,-500.0,0.00024657,6]
[345678724,1734423034045,-500.0,0.00024657,6]
[345678726,1734423034055,-487.88807284,0.00024657,6]
[345678728,1734423034065,-500.0,0.00024657,6]
[345678730,1734423034076,-500.0,0.00024657,6]
[345678732,1734423034086,-500.0,0.00024657,6]
[345678734,1734423034096,-501.46079397,0.00024657,6]
[345678736,1734423034105,-500.0,0.00024657,6]
[345678738,1734423034115,-500.0,0.00024657,6]
[345678740,1734423034124,-500.0,0.00024657,6]
[345678742,1734423034134,-500.0,0.00024657,6]
[345678744,1734423034143,-500.0,0.00024657,6]
[345678746,1734423034153,-500.0,0.00024657,6]
[345678749,1734423034163,-629.09232645,0.00024657,6]
[345678750,1734423034173,-500.0,0.00024657,6]
[345678753,1734423034183,-502.84413213,0.00024657,6]
[345678754,1734423034193,-284.44678621,0.00024657,6]
[345678756,1734423034204,-503.54268074,0.00024657,6]
[345678759,1734423034215,-500.0,0.00024657,6]
[345678760,1734423034224,-255.06109088,0.00024657,6]
[345678762,1734423034234,-500.0,0.00024657,6]
[345678764,1734423034243,-502.58810037,0.00024657,6]
[345678766,1734423034253,-500.0,0.00024657,6]
[345678768,1734423034263,-500.0,0.00024657,6]
[345678770,1734423034273,-500.0,0.00024657,6]
[345678772,1734423034283,-500.0,0.00024657,6]
[345678774,1734423034293,-500.0,0.00024657,6]
[345678777,1734423034303,-500.0,0.00024657,6]
[345678778,1734423034312,-501.8144278,0.00024657,6]
[345678781,1734423034321,-219.52903102,0.00024657,6]
[345678782,1734423034331,-502.28711056,0.00024657,6]
[345678785,1734423034341,-500.0,0.00024657,6]
[345678787,1734423034351,-500.0,0.00024657,6]
[345678789,1734423034361,-500.0,0.00024657,6]
[345678791,1734423034371,-504.22941056,0.00024657,6]
[345678793,1734423034382,-502.90455721,0.00024657,6]
[345678795,1734423034394,-917.72,0.00024657,6]
[345678797,1734423034403,-500.0,0.00024657,6]
[345678799,1734423034413,-500.0,0.00024657,6]
[345678801,1734423034423,-1020.76,0.00024657,6]
[345678803,1734423034432,-823.02,0.00024657,6]
[345678805,1734423034442,-512.31802534,0.00024657,6]
[345678807,1734423034451,-502.58138305,0.00024657,6]
[345678809,1734423034462,-500.0,0.00024657,6]
[345678811,1734423034472,-501.34163965,0.00024657,6]
[345678813,1734423034482,-500.0,0.00024657,6]
[345678815,1734423034492,-500.0,0.00024657,6]
[345678817,1734423034501,-500.0,0.00024657,6]
[345678819,1734423034510,-500.0,0.00024657,6]
[345678821,1734423034520,-500.0,0.00024657,6]
[345678823,1734423034529,-500.0,0.00024657,6]
[345678825,1734423034539,-502.57629133,0.00024657,6]
[345678827,1734423034548,-500.0,0.00024657,6]
[345678829,1734423034557,-683.7,0.00024657,6]
[345678831,1734423034566,-502.94922291,0.00024657,6]
[345678833,1734423034576,-500.0,0.00024657,6]
[345678835,1734423034585,-500.0,0.00024657,6]
[345678837,1734423034594,-500.0,0.00024657,6]
[345678839,1734423034604,-151.0,0.00024657,7]
[345678841,1734423034614,-178.282397,0.00024657,7]
[345678844,1734423034623,-500.0,0.00024657,6]
[345678846,1734423034633,-507.92280002,0.00024657,6]
[345678848,1734423034642,-500.0,0.00024657,6]
[345678850,1734423034651,-949.87,0.00024657,6]
[345678852,1734423034661,-502.0360665,0.00024657,6]
[345678854,1734423034671,-500.0,0.00024657,6]
[345678856,1734423034680,-500.0,0.00024657,6]
[345678858,1734423034690,-500.0,0.00024657,6]
[345678860,1734423034699,-500.0,0.00024657,6]
[345678862,1734423034708,-500.0,0.00024657,6]
[345678864,1734423034719,-500.0,0.00024657,6]
[345678866,1734423034728,-597.92686778,0.00024657,6]
[345678868,1734423034738,-500.0,0.00024657,6]
[345678870,1734423034747,-808.67,0.00024657,6]
[345678872,1734423034757,-500.0,0.00024657,6]
[345678874,1734423034766,-502.47939721,0.00024657,6]
[345678876,1734423034775,-500.0,0.00024657,6]
[345678878,1734423034784,-500.0,0.00024657,6]
[345678880,1734423034794,-500.0,0.00024657,6]
[345678882,1734423034803,-500.0,0.00024657,6]
[345678884,1734423034812,-502.2234049,0.00024657,6]
[345678886,1734423034822,-500.0,0.00024657,6]
[345678888,1734423034832,-500.0,0.00024657,6]
[345678890,1734423034841,-500.00000001,0.00024657,6]
[345678892,1734423034851,-558.66,0.00024657,6]
[345678894,1734423034860,-151.0,0.00024657,7]
[345678896,1734423034870,-151.0,0.00024657,7]
[345678898,1734423034879,-500.0,0.00024657,6]
[345678900,1734423034889,-185.27700191,0.00024657,7]
[345678902,1734423034903,-500.0,0.00024657,6]
[345678904,1734423034913,-500.0,0.00024657,6]
[345678906,1734423034922,-500.0,0.00024657,6]
[345678908,1734423034932,-552.30434419,0.00024657,6]
[345678910,1734423034943,-500.0,0.00024657,6]
[345678912,1734423034952,-500.0,0.00024657,6]
[345678914,1734423034962,-507.38602186,0.00024657,6]
[345678916,1734423034972,-500.0,0.00024657,6]
[345678918,1734423034982,-182.37835234,0.00024657,6]
[345678920,1734423034991,-500.0,0.00024657,6]
[345678922,1734423035001,-500.0,0.00024657,6]
[345678924,1734423035010,-500.0,0.00024657,6]
[345678926,1734423035020,-814.4,0.00024657,6]
[345678929,1734423035029,-540.33754057,0.00024657,6]
[345678931,1734423035039,-500.0,0.00024657,6]
[345678933,1734423035048,-500.0,0.00024657,6]
[345678935,1734423035057,-500.0,0.00024657,6]
[345678937,1734423035067,-1620.79,0.00024657,6]
[345678939,1734423035076,-500.0,0.00024657,6]
[345678941,1734423035085,-500.0,0.00024657,6]
[345678943,1734423035094,-500.0,0.00024657,6]
[345678945,1734423035104,-500.0,0.00024657,6]
[345678947,1734423035112,-500.0,0.00024657,6]
[345678949,1734423035122,-500.0,0.00024657,6]
[345678951,1734423035131,-514.25002855,0.00024657,6]
[345678953,1734423035140,-500.0,0.00024657,6]
[345678955,1734423035149,-506.26149956,0.00024657,6]
[345678957,1734423035159,-500.0,0.00024657,6]
[345678959,1734423035168,-170.80174056,0.00024657,6]
[345678961,1734423035178,-500.0,0.00024657,6]
[345678963,1734423035187,-500.0,0.00024657,6]
[345678965,1734423035196,-500.0,0.00024657,6]
[345678967,1734423035206,-1267.15,0.00024657,6]
[345678969,1734423035215,-317.91271234,0.00024657,6]
[345678971,1734423035224,-500.0,0.00024657,6]
[345678973,1734423035234,-500.0,0.00024657,6]
[345678975,1734423035243,-500.0,0.00024657,6]
[345678977,1734423035252,-617.71,0.00024657,6]
[345678979,1734423035261,-500.0,0.00024657,6]
[345678981,1734423035270,-500.0,0.00024657,6]
[345678983,1734423035280,-200.0,0.00024657,6]
[345678985,1734423035289,-500.0,0.00024657,6]
[345678987,1734423035298,-500.0,0.00024657,6]
[345678989,1734423035310,-500.0,0.00024657,6]
[345678991,1734423035319,-500.0,0.00024657,6]
[345678993,1734423035328,-501.42176119,0.00024657,6]
[345678994,1734423035337,-500.0,0.00024657,6]
[345678996,1734423035347,-500.0,0.00024657,6]
[345678998,1734423035356,-500.0,0.00024657,6]
[345678999,1734423035365,-500.0,0.00024657,6]
[345679001,1734423035375,-630.8,0.00024657,6]
[345679003,1734423035384,-417.2505205,0.00024657,6]
[345679005,1734423035393,-500.0,0.00024657,6]
[345679007,1734423035403,-500.0,0.00024657,6]
[345679009,1734423035412,-500.0,0.00024657,6]
[345679011,1734423035422,-152.50362,0.00024657,7]
[345679012,1734423035431,-298.89,0.00024657,6]
[345679014,1734423035441,-500.0,0.00024657,6]
[345679016,1734423035450,-500.0,0.00024657,6]
[345679018,1734423035459,-253.6292156,0.00024657,6]
[345679020,1734423035470,-500.0,0.00024657,6]
[345679021,1734423035479,-500.0,0.00024657,6]
[345679023,1734423035489,-521.04703784,0.00024657,6]
[345679025,1734423035498,-500.0,0.00024657,6]
[345679027,1734423035507,-500.0,0.00024657,6]
[345679029,1734423035517,-2385.9,0.00024657,6]
[345679030,1734423035526,-500.0,0.00024657,6]
[345679032,1734423035535,-749.84,0.00024657,6]
[345679034,1734423035545,-500.0,0.00024657,6]
[345679036,1734423035554,-500.0,0.00024657,6]
[345679038,1734423035564,-563.29180691,0.00024657,6]
[345679040,1734423035574,-503.32349654,0.00024657,6]
[345679042,1734423035584,-500.0,0.00024657,6]
[345679043,1734423035593,-1011.60059168,0.00024657,6]
[345679045,1734423035603,-500.0,0.00024657,6]
[345679047,1734423035612,-500.0,0.00024657,6]
[345679049,1734423035622,-500.0,0.00024657,6]
[345679051,1734423035632,-500.0,0.00024657,6]
[345679052,1734423035641,-500.0,0.00024657,6]
[345679054,1734423035650,-500.0,0.00024657,6]
[345679056,1734423035660,-500.0,0.00024657,6]
[345679058,1734423035669,-151.0,0.00024657,7]
[345679060,1734423035679,-154.06319,0.00024657,7]
[345679061,1734423035688,-500.0,0.00024657,6]
[345679063,1734423035698,-500.0,0.00024657,6]
[345679065,1734423035708,-508.83639919,0.00024657,6]
[345679067,1734423035720,-500.0,0.00024657,6]
[345679081,1734423035872,-500.0,0.00024657,6]
[345679083,1734423035882,-1349.49,0.00024657,6]
[345679085,1734423035891,-500.0,0.00024657,6]
[345679087,1734423035904,-500.0,0.00024657,6]
[345679089,1734423035913,-500.0,0.00024657,6]
[345679091,1734423035922,-506.6108973,0.00024657,6]
[345679092,1734423035931,-500.0,0.00024657,6]
[345679094,1734423035942,-500.0,0.00024657,6]
[345679096,1734423035952,-500.0,0.00024657,6]
[345679098,1734423035962,-1721.01,0.00024657,2]
[345679100,1734423035973,-500.0,0.00024657,6]
[345679102,1734423035982,-500.0,0.00024657,6]
[345679104,1734423035992,-1993.93,0.00024657,6]
[345679106,1734423036000,-500.0,0.00024657,6]
[345679107,1734423036010,-500.0,0.00024657,6]
[345679109,1734423036019,-500.0,0.00024657,6]
[345679111,1734423036028,-500.0,0.00024657,6]
[345679113,1734423036039,-500.0,0.00024657,6]
[345679115,1734423036048,-2685.22,0.00024657,6]
[345679116,1734423036057,-1078.97,0.00024657,6]
[345679118,1734423036067,-500.0,0.00024657,6]
[345679120,1734423036076,-500.0,0.00024657,6]
[345679122,1734423036085,-500.0,0.00024657,6]
[345679124,1734423036095,-500.0,0.00024657,2]
[345679126,1734423036104,-500.0,0.00024657,6]
[345679128,1734423036113,-500.0,0.00024657,6]
[345679130,1734423036123,-500.0,0.00024657,6]
[345679132,1734423036132,-500.0,0.00024657,6]
[345679133,1734423036141,-500.0,0.00024657,6]
[345679135,1734423036151,-500.0,0.00024657,6]
[345679137,1734423036160,-970.89,0.00024657,6]
[345679139,1734423036169,-500.0,0.00024657,6]
[345679141,1734423036179,-500.0,0.00024657,6]
[345679143,1734423036188,-500.0,0.00024657,6]
[345679145,1734423036198,-517.15791071,0.00024657,6]
[345679147,1734423036208,-505.14401858,0.00024657,6]
[345679149,1734423036223,-2759.98,0.00024657,6]
[345679151,1734423036231,-2759.98,0.00024657,6]
[345679152,1734423036241,-2759.98,0.00024657,6]
[345679154,1734423036251,-2759.98,0.00024657,6]
[345679156,1734423036261,-2759.98,0.00024657,6]